{"text_format":"1","workbook":"xlsx","n_sheets":16,"sheets":["Start her!","Tabel 1. Øk. hoved- og nlg tal","Tabel 2. Hovedkonti","Tabel 2A.","Tabel 3. og 3a.","Tabel 5 Forvent. til kom. år","Tabel 6. Resultatopgørelse","Tabel 7. Resultatdisp","Tabel 8. Balancen","Tabel 9. Egenkapital","Tabel 10. Låneramme","Tabel 11. Lønsum","Tabel 12. Bev.regnsk.","Tabel 12A. Udgiftsbaserede hk","Tabel 13 og frem (noter og bil)","Skabelon til suppl. noter"],"not_rendered":{"charts":0,"images":0,"macros":0,"external_links":2,"defined_names":23,"comments":1,"pivot_tables":0},"unopened":[],"bounds":{"document_bytes":16777216,"sheet_cells":100000,"rows_first":2000,"rows_last":500,"rows_between":2000,"halvings":0,"cell_chars":16384,"cell_head_chars":4096},"cells_cut":0,"cells_raw":0,"read":"whole","date_system":"1900"}

{"sheet":"Start her!","index":0,"n_rows":42,"n_cols":7,"rows_kept":42,"cut":false,"hidden":false,"merged":[]}
[null,"Årstabeller 2020"]
[null,"Akademiraadet",null,"Disposition","Afsnit i årsrapport"]
[null,null,null,"Beretning og Målrapportering"]
[null,null,null,"Tabel 1. Virksomhedens økonomiske hoved og nøgletal","2.2. Ledelsesberetning"]
[null,null,null,"Tabel 2. Virksomhedens hovedkonti","2.2. Ledelsesberetning"]
[null,null,null,"Tabel 2A. Overført overskud","2.2. Ledelsesberetning"]
[null,null,null,"Tabel 3. Sammenfatning af økonomi for virksomhedens opgaver","2.3. Kerneopgaver"]
[null,null,null,"Tabel 3a. Centrale aktivitetsoplysninger","2.3 Kerneopgaver"]
[null,null,null,"Tabel 5. Forventninger til det kommende år","2.5. Forventninger til det kommende år"]
[]
[null,null,null,"Økonomitabeller"]
[null,null,null,"Tabel 6. Resultatopgørelse","3.2. Resultatopgørelse mv."]
[null,null,null,"Tabel 7. Resultatdisponering","3.2. Resultatopgørelse mv."]
[null,null,null,"Tabel 8. Balancen","3.3. Balancen"]
[null,null,null,"Tabel 9. Egenkapitalforklaring","3.4. Egenkapitalforklaring"]
[null,null,null,"Tabel 10.Udnyttelse af låneramme","3.5. Likviditet og låneramme"]
[null,null,null,"Tabel 11.Opfølgning på lønsumsloft","3.6. Opfølgning på lønsumsloft"]
[null,null,null,"Tabel 12. Bevillingsregnskab","3.7. Bevillingsregnskabet"]
[null,null,null,"Tabel 12A. Virksomhedens udgiftsbaserede hovedkonti","3.8. Udgiftsbaserede hovedkonti"]
[null,null,null,"Noter"]
[null,null,null,"Tabel 13. Note 1: Immaterielle anlægsaktiver (obligatorisk)","4.1. Noter til resultatopgørelse og balance"]
[null,null,null,"Tabel 14. Note 2: Materielle anlægsaktiver (obligatorisk)","4.1. Noter til resultatopgørelse og balance"]
[null,null,null,"Tabel 14a. Hensatte forpligtelser","4.1. Noter til resultatopgørelse og balance"]
[null,null,null,"Bilag"]
[null,null,null,"Tabel 15. Sammenfatning af elementer i prisfastsættelse","4.2. Indtægtsdækket virksomhed"]
[null,null,null,"Tabel 16. Oversigt over akkumuleret resultat for indtægtsdækket virks.","4.2. Indtægtsdækket virksomhed"]
[null,null,null,"Tabel 17. Oversigt over gebyrordninger med adm. fastsat takst ","4.3. Gebyrfinansieret virksomhed"]
[null,null,null,"Tabel 18. Oversigt over gebyrordninger med lovbestemt takst","4.3. Gebyrfinansieret virksomhed"]
[null,null,null,"Tabel 19. Andre tilskudsfinansierede aktiviteter (uk. 97)","4.4. Tilskudsfinansierede aktiviteter"]
[null,null,null,"Tabel 19a. Tilskudsfinansieret forskningsvirksomhed (uk. 95)","4.4. Tilskudsfinansierede aktiviteter"]
[null,null,null,"Tabel 20.  Oversigt over afsluttede anlægsprojekter","4.5. Forelagte investeringer",null,"[vælg mio. el. tusinder]"]
[null,null,null,"Tabel 21. Oversigt over igangværende anlægsprojekter","4.5 Forelagte investeringer",null,"1000 kr."]
[null,null,null,"Tabel 22. It-omkostninger","4.6  IT-omkostninger",null,"Mio. kr."]
[null,null,null,"Tabel 23. Tilskudsregnskab","4.7 Supplerende bilag"]
[null,null,null,"Tabel 24. Udestående tilsagn","4.7 Supplerende bilag"]
[null,null,null,"Tabel 25. Afrapportering på nøgletal for forvaltnignsopgaver","4.7 Supplerende bilag"]
[]
[null,null,null,"Supplerende noter"]
[null,null,null,"Skabelon til supplerende noter","4.7 Supplerende bilag"]
[]
[null,null,null,"Tabellerne er udfyldt i ",1000]
[null,null,null,null," "]

{"sheet":"Tabel 1. Øk. hoved- og nlg tal","index":1,"n_rows":80,"n_cols":22,"rows_kept":80,"cut":false,"hidden":false,"merged":[[46,12,46,13],[47,12,47,13],[8,12,8,13],[37,12,37,13],[38,12,38,13],[39,12,39,13],[45,12,45,13],[20,12,20,13],[9,12,9,13],[10,12,10,13],[11,12,11,13],[12,12,12,13],[13,12,13,13],[14,12,14,13],[15,12,15,13],[16,12,16,13],[3,12,4,12],[3,14,3,15],[5,12,5,13],[6,12,6,13],[7,12,7,13],[17,12,17,13],[18,12,18,13],[19,12,19,13],[27,12,27,13],[28,12,28,13],[29,12,29,13],[30,12,30,13],[21,12,21,13],[22,12,22,13],[23,12,23,13],[24,12,24,13],[25,12,25,13],[26,12,26,13],[31,0,31,3],[33,0,33,3],[48,0,48,3],[53,0,53,3],[40,0,40,3],[78,12,78,13],[79,12,79,13],[72,12,72,13],[73,12,73,13],[74,12,74,13],[75,12,75,13],[76,12,76,13],[77,12,77,13],[71,12,71,13],[60,12,60,13],[61,12,61,13],[62,12,62,13],[63,12,63,13],[64,12,64,13],[65,12,65,13],[66,12,66,13],[67,12,67,13],[68,12,68,13],[69,12,69,13],[70,12,70,13],[59,12,59,13],[54,12,54,13],[55,12,55,13],[56,12,56,13],[57,12,57,13],[58,12,58,13]]}
["Tabel 1. Virksomhedens økonomiske hoved- og nøgletal"]
["Hovedtotal"]
[{"$f":"'Start her!'!E41&\", løbende priser\"","v":"1000, løbende priser"},2019,2020,2021,null,null,null,null,null,null,null,null,"\nTabel 01 Hovedtabel 2020 - resultatopgørelse og balancedel \n"]
["Resultatopgørelse",null,null,null,null,null,null,null,null,null,null,null,"Beløbstype","Virksomhed","11887252 Kgl. Akademi for de Skønne Kunster"]
["Ordinære driftsindtægter",{"$f":"'Tabel 6. Resultatopgørelse'!C13","v":-3460},{"$f":"'Tabel 6. Resultatopgørelse'!D13","v":0},{"$f":"'Tabel 6. Resultatopgørelse'!E13","v":0},null,null,null,null,null,null,null,null,null,"ResultatOGBalance","Resultatopgørelsesdel","Balancedel"]
["- Heraf indtægtsført bevilling",{"$f":"'Tabel 6. Resultatopgørelse'!C7","v":-3200},0,{"$f":"'Tabel 6. Resultatopgørelse'!E7","v":0},null,null,null,null,null,null,null,null,"Ordinære driftsindtægter Primobalance (incl. primokorrektioner)",null,0,0]
["Ordinære driftsomkostninger",{"$f":"'Tabel 6. Resultatopgørelse'!C28","v":3518.2999999999997},0,{"$f":"'Tabel 6. Resultatopgørelse'!E28","v":0},null,null,null,null,null,null,null,null,"Ordinære driftsindtægter Regnskab periode: 01-13 2020",null,-3100000,0]
["Resultat af ordinær drift",{"$f":"'Tabel 6. Resultatopgørelse'!C29","v":58.299999999999727},{"$f":"'Tabel 6. Resultatopgørelse'!D29","v":0},{"$f":"'Tabel 6. Resultatopgørelse'!E29","v":0},null,null,null,null,null,null,null,null,"Ordinære driftsindtægter Ultimobalance (år-til-dato)",null,0,0]
["Resultat før finansielle poster",{"$f":"'Tabel 6. Resultatopgørelse'!C33","v":53.099999999999724},{"$f":"'Tabel 6. Resultatopgørelse'!D33","v":0},{"$f":"'Tabel 6. Resultatopgørelse'!E33","v":0},null,null,null,null,null,null,null,null,"Ordinære driftsomkostninger Primobalance (incl. primokorrektioner)",null,0,0]
["Årets resultat",{"$f":"'Tabel 6. Resultatopgørelse'!C41","v":56.999999999999723},{"$f":"'Tabel 6. Resultatopgørelse'!D41","v":0},{"$f":"'Tabel 6. Resultatopgørelse'!E41","v":0},null,null,null,null,null,null,null,null,"Ordinære driftsomkostninger Regnskab per.: 01-13 2020",null,2959730,0]
["Balance",null,null,null,null,null,null,null,null,null,null,null,"Ordinære driftsomkostninger Ultimobalance (år-til-dato)",null,0,0]
["Anlægsaktiver",{"$f":"'Tabel 8. Balancen'!C23","v":0},{"$f":"'Tabel 8. Balancen'!D23","v":0},0,null,null,null,null,null,null,null,null,"Resultat af ordinære drift",null,-140270,0]
["Omsætningsaktiver",{"$f":"'Tabel 8. Balancen'!C34","v":0},{"$f":"'Tabel 8. Balancen'!D34","v":0},0,null,null,null,null,null,null,null,null,"Tillæg til finansielle poster",null,204.03,0]
["Egenkapital",{"$f":"'Tabel 8. Balancen'!C46","v":0},{"$f":"'Tabel 8. Balancen'!D46","v":0},0,null,null,null,null,null,null,null,null,"Resultat før finansielle poster",null,-140065.97,0]
["Langfristet gæld",{"$f":"'Tabel 8. Balancen'!C57","v":0},{"$f":"'Tabel 8. Balancen'!D57","v":0},0,null,null,null,null,null,null,null,null,"Regnskab år-til-dato",null,2413.33,0]
["Kortfristet gæld",{"$f":"'Tabel 8. Balancen'!C67","v":0},{"$f":"'Tabel 8. Balancen'!D67","v":0},0,null,null,null,null,null,null,null,null,"Årets resultat",null,-137652.64000000001,0]
["Lånerammen",300,300,0,null,null,null,null,null,null,null,null,"Imma- og materielle anlægsaktiver Primobalance (inkl. PK )",null,0,41556.99]
["Træk på lånerammen",41.6,13.9,0,null,null,null,null,null,null,null,null,"Imma- og materielle anlægsaktiver Regnskab per.: 01-13 2020",null,0,-27704.66]
["Finansielle nøgletal",null,null,null,null,null,null,null,null,null,null,null,"Imma-og materielle anlægsaktiver Ultimobalance (år-til-dato)",null,0,13852.33]
["Udnyttelsesgrad af lånerammen",{"$f":"IF(B17=0, \"-\", B18/B17)","v":0.13866666666666666},{"$f":"IF(C17=0, \"-\", C18/C17)","v":4.6333333333333337E-2},{"$f":"IF(D17=0, \"-\", D18/D17)","v":"-"},null,null,null,null,null,null,null,null,"Omsætningsaktiver (ekskl. likvider) Primobalance (inkl. PK)",null,0,155379.48000000001]
["Negativ udsvingsrate",{"$f":"IF('Tabel 8. Balancen'!C40=0, \"-\", 'Tabel 8. Balancen'!C45/'Tabel 8. Balancen'!C40)","v":"-"},{"$f":"IF('Tabel 8. Balancen'!D40=0, \"-\", 'Tabel 8. Balancen'!D45/'Tabel 8. Balancen'!D40)","v":"-"},0,null,null,null,null,null,null,null,null,"Omsætningsaktiver (ekskl. likvider) Regnskab per.:01-13 2020",null,0,133607.09]
["Bevillingsandel",{"$f":"IF(B5=0, \"-\",B6/B5)","v":0.92485549132947975},{"$f":"IF(C5=0, \"-\",C6/C5)","v":"-"},{"$f":"IF(D5=0, \"-\",D6/D5)","v":"-"},null,null,null,null,null,null,null,null,"Omsætningsaktiver (ekskl. likvider) Ultimobal. (år-til-dato)",null,0,288986.57]
["Overskudsgrad",{"$f":"IF(B5=0, \"-\", B10/B5)","v":-1.6473988439306277E-2},{"$f":"IF(C5=0, \"-\", C10/C5)","v":"-"},{"$f":"IF(D5=0, \"-\", D10/D5)","v":"-"},null,null,null,null,null,null,null,null,"Egenkapital Primobalance (incl. primokorrektioner)",null,0,-341172.58]
["Personaleoplysninger",null,null,null,null,null,null,null,null,null,null,null,"Egenkapital Regnskab periode: 01-13 2020",null,-137652.64000000001,0]
["Antal årsværk",2.9,3,2.7,null,null,null,null,null,null,null,null,"Egenkapital Ultimobalance (år-til-dato)",null,0,-478825.22]
["Årsværkspris",672.3,647.79999999999995,703,null,null,null,null,null,null,null,null,"Langfristede forpligtelser Primobalance (inkl. PK)",null,0,-48483.15]
[null,null,null,null,null,null,null,null,null,null,null,null,"Langfristede forpligtelser Regnskab periode: 01-13 2020",null,0,27704.66]
[null,null,null,null,null,null,null,null,null,null,null,null,"Langfristede forpligtelser Ultimobalance (år-til-dato)",null,0,-20778.490000000002]
["Kopivenlig version: ",null,null,null,null,null,null,null,null,null,null,null,"Kortfristede forpligtelser Primobalance (inkl. PK)",null,0,-706461.73]
[null,null,null,null,null,null,null,null,null,null,null,null,"Kortfristede forpligtelser Regnskab periode: 01-13 2020",null,0,-23830.95]
[{"$f":"A1","v":"Tabel 1. Virksomhedens økonomiske hoved- og nøgletal"},null,null,null,null,null,null,null,null,null,null,null,"Kortfristede forpligtelser Ultimobalance (år-til-dato)",null,0,-730292.68]
[{"$f":"A2","v":"Hovedtotal"}]
[{"$f":"A3","v":"1000, løbende priser"},{"$f":"B3","v":2019},2020,2021]
[{"$f":"A4","v":"Resultatopgørelse"}]
[{"$f":"A5","v":"Ordinære driftsindtægter"},-3460,0,0]
[{"$f":"A6","v":"- Heraf indtægtsført bevilling"},-3200,0,0,null,null,null,null,null,null,null,null,"\nTabel 01 Personaleoplysninger - Lønomkostningsandel (H14-H18) \n"]
[{"$f":"A7","v":"Ordinære driftsomkostninger"},3518.2999999999997,0,0,null,null,null,null,null,null,null,null,"Virksomhed / Hovedkonto","Beløbstype","Antal årsværk\n","Lønsumsloft 1 Bev\n","lønsumsloft 2 uforbrugt lønsum\n","Lønsumsloft\n (mio. kr.)","Lønforbrug\n (mio. kr.)","Årsværkspris (hele kr)\n","Ordinære driftsindtægter\n","Lønomkostningsandel\n"]
[{"$f":"A8","v":"Resultat af ordinær drift"},58.299999999999727,0,0,null,null,null,null,null,null,null,null,"I alt",null,2.73,2000000,1325000,3325000,1919217.59,703010.10622710001,-3100000,0.61910244000000003]
[{"$f":"A9","v":"Resultat før finansielle poster"},53.099999999999724,0,0,null,null,null,null,null,null,null,null,"11887252 Kgl. Akademi for de Skønne Kunster",null,2.73,2000000,1325000,3325000,1919217.59,703010.10622710001,-3100000,0.61910244000000003]
[{"$f":"A10","v":"Årets resultat"},56.999999999999723,0,0,null,null,null,null,null,null,null,null,"     212121 Det Kongelige Akademi for de Skønne Kunster",null,2.73,2000000,1325000,3325000,1919217.59,703010.10622710001,-3100000,0.61910244000000003]
[{"$f":"A11","v":"Balance"}]
[{"$f":"A12","v":"Anlægsaktiver"},0,0,0]
[{"$f":"A13","v":"Omsætningsaktiver"},0,0,0]
[{"$f":"A14","v":"Egenkapital"},0,0,0,null,null,null,null,null,null,null,null,"\nTabel 01a Bevillingsandel (H13) \n"]
[{"$f":"A15","v":"Langfristet gæld"},0,0,0,null,null,null,null,null,null,null,null,"Virksomhed / Bogføringskreds","Beløbstype","Indtægtsført bevilling periode 01 - 13 2020\n (mio. kr.)","Ordinære driftsindtægter i alt, periode 01 - 13 2020\n (mio. kr.)","Bevillingsandel\n"]
[{"$f":"A16","v":"Kortfristet gæld"},0,0,0,null,null,null,null,null,null,null,null,"I alt",null,3100000,3100000,100]
[{"$f":"A17","v":"Lånerammen"},300,300,0,null,null,null,null,null,null,null,null,"11887252 Kgl. Akademi for de Skønne Kunster",null,3100000,3100000,100]
[{"$f":"A18","v":"Træk på lånerammen"},41.6,13.9,0,null,null,null,null,null,null,null,null,"     30251 Det Kgl. Akademi for de Skønne Kunster",null,3100000,3100000,100]
[{"$f":"A19","v":"Finansielle nøgletal"}]
[{"$f":"A20","v":"Udnyttelsesgrad af lånerammen"},0.13866666666666666,4.6333333333333337E-2,"-"]
[{"$f":"A21","v":"Negativ udsvingsrate"},"-","-",{"$f":"D21","v":0}]
[{"$f":"A22","v":"Bevillingsandel"},0.92485549132947975,"-","-"]
[{"$f":"A23","v":"Overskudsgrad"},-1.6473988439306277E-2,"-","-",null,null,null,null,null,null,null,null,"\nTabel 06 Resultatopgørelse \n"]
[{"$f":"A24","v":"Personaleoplysninger"},null,null,null,null,null,null,null,null,null,null,null,"Virksomhed / Resultat af ordinær drift / IndtægterOgOmkostninger / Subtotal på andet niveau / Resultatopgørelse","Beløbstype","Regnskab til og med senest afsluttede periode (12)\n","Regnskab indeværende periode (Periode: 13)\n","Regnskab år til dato\n"]
[{"$f":"A25","v":"Antal årsværk"},{"$f":"B25","v":2.9},3,2.7,null,null,null,null,null,null,null,null,"I alt",null,-137652.64000000001,0,-137652.64000000001]
[{"$f":"A26","v":"Årsværkspris"},{"$f":"B26","v":672.3},647.79999999999995,703,null,null,null,null,null,null,null,null,"11887252 Kgl. Akademi for de Skønne Kunster",null,-137652.64000000001,0,-137652.64000000001]
[null,null,null,null,null,null,null,null,null,null,null,null,"     Resultat af ordinær drift",null,-140270,0,-140270]
[null,null,null,null,null,null,null,null,null,null,null,null,"          Ordinære Driftsindtægter i alt",null,-3100000,0,-3100000]
[null,null,null,null,null,null,null,null,null,null,null,null,"               Indtægtsført bevilling i alt",null,-3100000,0,-3100000]
[null,null,null,null,null,null,null,null,null,null,null,null,"                    Bevilling",null,-3100000,0,-3100000]
[null,null,null,null,null,null,null,null,null,null,null,null,"          Ordinære Driftsomkostninger i alt",null,2959730,0,2959730]
[null,null,null,null,null,null,null,null,null,null,null,null,"               Forbrugsomkostninger i alt",null,107060,0,107060]
[null,null,null,null,null,null,null,null,null,null,null,null,"                    Husleje",null,107060,0,107060]
[null,null,null,null,null,null,null,null,null,null,null,null,"               Personaleomkostninger i alt",null,1943217.59,0,1943217.59]
[null,null,null,null,null,null,null,null,null,null,null,null,"                    Lønninger",null,1677861.81,0,1677861.81]
[null,null,null,null,null,null,null,null,null,null,null,null,"                    Andre personaleomkostninger",null,24000,0,24000]
[null,null,null,null,null,null,null,null,null,null,null,null,"                    Pension",null,241355.78,0,241355.78]
[null,null,null,null,null,null,null,null,null,null,null,null,"               Årets af- og nedskrivninger",null,27704.66,0,27704.66]
[null,null,null,null,null,null,null,null,null,null,null,null,"                    Af- og nedskrivninger",null,27704.66,0,27704.66]
[null,null,null,null,null,null,null,null,null,null,null,null,"               Andre ordinære driftsomkostninger",null,507732.61,0,507732.61]
[null,null,null,null,null,null,null,null,null,null,null,null,"                    Andre ordinære driftsomkostninger",null,507732.61,0,507732.61]
[null,null,null,null,null,null,null,null,null,null,null,null,"               Internt køb af varer og tjenesteydelser",null,374015.14,0,374015.14]
[null,null,null,null,null,null,null,null,null,null,null,null,"                    Internt køb af varer og tjnesteydelser",null,374015.14,0,374015.14]
[null,null,null,null,null,null,null,null,null,null,null,null,"     Øvrige",null,2617.36,0,2617.36]
[null,null,null,null,null,null,null,null,null,null,null,null,"          Øvrige",null,2617.36,0,2617.36]
[null,null,null,null,null,null,null,null,null,null,null,null,"               Øvrige",null,2617.36,0,2617.36]
[null,null,null,null,null,null,null,null,null,null,null,null,"                    Andre driftsindtægter",null,0,0,0]
[null,null,null,null,null,null,null,null,null,null,null,null,"                    Andre driftsomkostninger",null,204.03,0,204.03]
[null,null,null,null,null,null,null,null,null,null,null,null,"                    Finansielle omkostninger",null,2413.33,0,2413.33]
[null,null,null,null,null,null,null,null,null,null,null,null,"                    Øvrige",null,0,0,0]

{"sheet":"Tabel 2. Hovedkonti","index":2,"n_rows":25,"n_cols":17,"rows_kept":25,"cut":false,"hidden":false,"merged":[[10,4,11,4],[12,1,13,1],[12,2,13,2],[12,4,13,4],[12,3,13,3],[10,3,11,3],[10,0,13,0],[10,1,11,1],[10,2,11,2],[6,0,9,0],[2,0,5,0],[2,4,3,4],[4,1,5,1],[4,2,5,2],[4,4,5,4],[8,3,9,3],[6,3,7,3],[4,3,5,3],[2,1,3,1],[2,2,3,2],[8,1,9,1],[8,2,9,2],[8,4,9,4],[6,4,7,4],[6,1,7,1],[6,2,7,2],[2,3,3,3],[23,7,23,8],[24,7,24,8],[18,7,19,7],[18,9,18,11],[18,13,18,16],[20,7,20,8],[21,7,21,8],[22,7,22,8]]}
["Tabel 2. Virksomhedens hovedkonti"]
[null,"(Mio. kr.) ","Bevilling (FL+TB)","Regnskab 20xx","Overført overskud ultimo"]
["Drift","Udgifter ",3.1,3,0.1]
[]
[null,"Indtægter",0,0,0]
[]
["Administrerede ordninger ","Udgifter",null,0,0]
[]
[null,"Indtægter",0,0,0]
[]
["Anlæg","Udgifter ",0,0,0]
[]
[null,"Indtægter",0,0,0]
[]
[]
[]
[]
[null,null,null,null,null,null,null,"\nTabel 02 Virksomhedens økonomiske omfang \n"]
[null,null,null,null,null,null,null,"Virksomhed / Gruppeinger / Udgift/indtægt/balance","","Bevilling",null,null,"",""]
[null,null,null,null,null,null,null,null,"Beløbstype","FL\n (mio. kr.)","TB\n (mio. kr.)","Finansårets bevilling i alt\n (mio. kr.)","Regnskab \n (mio. kr.)","Overført overskud/videreførsler ultimo året\n (mio. kr.)","Omkostning og virkbærende\n","Udgift og virkbærende\n","Omkostning og ikke virkbærende\n"]
[null,null,null,null,null,null,null,"11887252 Kgl. Akademi for de Skønne Kunster",null,3100000,0,3100000,2962347.36,428825.22,73,0,0]
[null,null,null,null,null,null,null,"     10 Drift",null,3100000,0,3100000,2962347.36,428825.22,73,0,0]
[null,null,null,null,null,null,null,"          Udgiftskonto",null,3100000,0,3100000,2962347.36,0,26,0,0]
[null,null,null,null,null,null,null,"          Indtægtskonto",null,0,0,0,0,0,3,0,0]
[null,null,null,null,null,null,null,"          Balancekonto",null,0,0,0,0,428825.22,44,0,0]

{"sheet":"Tabel 2A.","index":3,"n_rows":8,"n_cols":5,"rows_kept":8,"cut":false,"hidden":false,"merged":[[0,0,0,2],[0,4,0,6],[1,0,1,1],[2,0,2,3],[3,0,3,3]]}
["Overført overskud",null,null,null,"VEJLEDNING"]
["UDSKRIFTSEGNET VERSION NEDENFOR INDTASTNINGSARKET"]
["Indsæt og slet selv linjer i tilfælde af, at der mangler/er for mange."]
["Tabel 2A. Overskud, hovedkonto [XX.XX.XX.]"]
[{"$f":"'Start her!'!E41&\"løbende, priser\"","v":"1000løbende, priser"},null,"Reserveret bevilling","Overført overskud"]
["Beholdning primo R-året",null,0,{"$f":"SUM(D7:D7)","v":0}]
["Årets øvrige bevægelser",2020,0,0]
["Beholdning ultimo R-året",null,{"$f":"SUM(C6:C7)","v":0},{"$f":"SUM(D6:D7)","v":0}]

{"sheet":"Tabel 3. og 3a.","index":4,"n_rows":28,"n_cols":5,"rows_kept":28,"cut":false,"hidden":false,"merged":[[1,0,1,4],[0,0,0,1],[20,0,20,4]]}
[]
["Tabel 3. Sammenfatning af økonomi for virksomhedens produkter/opgaver"]
[{"$f":"'Start her!'!E41&\"løbende, priser\"","v":"1000løbende, priser"},"Bevilling (FL+TB)","Øvrige indtægter","Omkostninger","Andel af årets overskud"]
["0. Generelle fællesomkostninger",0,0,0,{"$f":"SUM(B4:C4)+D4","v":0}]
["Heraf Generel ledelse",0,0,0,{"$f":"SUM(B5:C5)+D5","v":0}]
["Heraf Økonomi,HR og strategi",0,0,0,{"$f":"SUM(B6:C6)+D6","v":0}]
["Heaf IT",0,0,0,{"$f":"SUM(B7:C7)+D7","v":0}]
["Heraf bygninger og intern service"]
["1. Råd/Vejledning/Afgørelser"]
["I alt",{"$f":"SUM(B4:B9)","v":0},{"$f":"SUM(C4:C9)","v":0},{"$f":"SUM(D4:D9)","v":0},{"$f":"SUM(E4:E9)","v":0}]
[]
[null,{"$f":"B3","v":"Bevilling (FL+TB)"},{"$f":"C3","v":"Øvrige indtægter"}]
["Til fordeling ",{"$f":"'Tabel 6. Resultatopgørelse'!D7","v":0},{"$f":"SUM('Tabel 6. Resultatopgørelse'!D8:D12,'Tabel 6. Resultatopgørelse'!D31,'Tabel 6. Resultatopgørelse'!D35,'Tabel 6. Resultatopgørelse'!D39)","v":0}]
["Fordel i tabel 2",{"$f":"B10","v":0},{"$f":"C10","v":0}]
["Kontrol",{"$f":"B13-B14","v":0},{"$f":"C13-C14","v":0}]
[]
[]
[]
[]
[]
["Tabel 3a. Centrale aktivitetsoplysninger"]
[null,"20xx","20xx","20xx","20xx"]
["Aktivitet/enhed"]
["Aktivitet/enhed"]
["Aktivitet/enhed"]
["Aktivitet/enhed"]
["Aktivitet/enhed"]
["Aktivitet/enhed"]

{"sheet":"Tabel 5 Forvent. til kom. år","index":5,"n_rows":13,"n_cols":14,"rows_kept":13,"cut":false,"hidden":false,"merged":[[9,10,9,11],[10,10,10,11],[11,10,11,11],[12,10,12,11],[3,10,4,10],[3,12,3,13],[5,10,5,11],[6,10,6,11],[7,10,7,11],[8,10,8,11]]}
["Tabel 5. Forventninger til det kommende år"]
[null,"Regnskab 2020 ","Grundbudget 2021"]
["Bevilling og øvrige indtægter",0,0,null,null,null,null,null,null,null,"\nTabel 05 Forventninger til det kommende år \n"]
["Udgifter",0,0,null,null,null,null,null,null,null,"Beløbstype","Virksomhed","11887252 Kgl. Akademi for de Skønne Kunster"]
["Resultat",{"$f":"(B3+B4)","v":0},{"$f":"C3+C4","v":0},null,null,null,null,null,null,null,null,"Finansår","2020","2021"]
[null,null,null,null,null,null,null,null,null,null,"Bevilling og øvrige indtægter Regnskab R-år (mio. kr.)",null,-3100000,0]
[null,null,null,null,null,null,null,null,null,null,"Udgift Regnskab R-år (mio. kr.)",null,2962347.36,0]
[null,null,null,null,null,null,null,null,null,null,"Indtægt Grundbudget B-år (mio. kr.)",null,0,0]
[null,null,null,null,null,null,null,null,null,null,"Bevilling 2021 (mio. kr.)",null,0,-3300000]
[null,null,null,null,null,null,null,null,null,null,"Bevilling og øvrige indtægter Grundbudget B-året (mio. kr.)",null,0,-3300000]
[null,null,null,null,null,null,null,null,null,null,"Udgift Grundbudget B-år (mio. kr.)",null,0,3300000]
[null,null,null,null,null,null,null,null,null,null,"Resultat R-året (mio. kr.)",null,-137652.64000000001,0]
[null,null,null,null,null,null,null,null,null,null,"Resultat grundbudget B-året (mio. kr.)",null,0,0]

{"sheet":"Tabel 6. Resultatopgørelse","index":6,"n_rows":45,"n_cols":13,"rows_kept":45,"cut":false,"hidden":false,"merged":[[1,2,1,4],[43,8,43,9],[44,8,44,9],[37,8,37,9],[38,8,38,9],[39,8,39,9],[40,8,40,9],[41,8,41,9],[42,8,42,9],[31,8,31,9],[32,8,32,9],[33,8,33,9],[34,8,34,9],[35,8,35,9],[36,8,36,9],[25,8,25,9],[26,8,26,9],[27,8,27,9],[28,8,28,9],[29,8,29,9],[30,8,30,9],[24,8,24,9],[19,8,19,9],[20,8,20,9],[21,8,21,9],[22,8,22,9],[23,8,23,9]]}
[]
[null,"Tabel 6. Resultatopgørelse"]
[null,{"$f":"'Start her!'!E41&\", løbende priser\"","v":"1000, løbende priser"},2019,2020,2021,"Formler","VEJLEDNING TIL INDTASTNING - tal referer til kravspecifikation 2018"]
[null,"Ordinære driftsindtægter",null,null,null,null,"Overskrift"]
[null,"Indtægtsført bevilling",null,null,null,null,"Overskrift"]
[null,"Bevilling",-3200,0,0,"A",1011]
[null,"Indtægtsført bevilling i alt",{"$f":"SUM(C6)","v":-3200},{"$f":"SUM(D6)","v":0},{"$f":"SUM(E6)","v":0},"Sum1","Sum1=A"]
[null,"Salg af varer og tjenesteydelser",0,{"$f":"D9+D10","v":0},{"$f":"E9+E10","v":0},"D","sum af eksternt og internt salg"]
[null,"Eksternt salg af varer og tjenesteydelser",0,0,0,null,"1110-1180"]
[null,"Internt statsligt salg af varer og tjenesteydelser",0,0,0,null,"12.11,12.12,12.15"]
[null,"Tilskud til egen drift",-260,0,0,"E","3115-3155, 3210-3220, 3410"]
[null,"Gebyrer",0,0,0,"F ",1311]
[null,"Ordinære driftsindtægter i alt",{"$f":"SUM(C7+C8+C11+C12)","v":-3460},{"$f":"SUM(D7+D8+D11+D12)","v":0},{"$f":"SUM(E7+E8+E11+E12)","v":0},"Sum2","Sum2=Sum1+D+E+F"]
[null,"Ordinære driftsomkostninger",null,null,null,null,"Overskrift"]
[null,"Ændring i lagre",0,0,0,"H","1511-1515"]
[null,"Forbrugsomkostninger",null,null,null,null,"Overskrift"]
[null,"Husleje",106,0,0,"I","1610-1630"]
[null,"Forbrugsomkostninger i alt",{"$f":"SUM(C14:C17)","v":106},{"$f":"D17","v":0},{"$f":"E17","v":0},"Sum3","Sum3=I",null,"\nTabel 06 Resultatopgørelse \n"]
[null,"Personaleomkostninger",null,null,null,null,"Overskrift",null,"Virksomhed / Resultat af ordinær drift / IndtægterOgOmkostninger / Subtotal på andet niveau / Resultatopgørelse","Beløbstype","Regnskab til og med senest afsluttede periode (12)\n","Regnskab indeværende periode (Periode: 13)\n","Regnskab år til dato\n"]
[null,"Lønninger",1693.5,0,0,"K","1805-1868, 1920",null,"I alt",null,-137652.64000000001,0,-137652.64000000001]
[null,"Andre personaleomkostninger",24,0,0,"L","1871-1878, 4423-4425",null,"11887252 Kgl. Akademi for de Skønne Kunster",null,-137652.64000000001,0,-137652.64000000001]
[null,"Pension",242.6,0,0,"M","1881-1883, 4421",null,"     Resultat af ordinær drift",null,-140270,0,-140270]
[null,"Lønrefusion",0,0,0,"N","1887-1892",null,"          Ordinære Driftsindtægter i alt",null,-3100000,0,-3100000]
[null,"Personaleomkostninger i alt",{"$f":"SUM(C20:C23)","v":1960.1},{"$f":"SUM(D20:D23)","v":0},{"$f":"SUM(E20:E23)","v":0},"Sum4","Sum4=K+L+M+N",null,"               Indtægtsført bevilling i alt",null,-3100000,0,-3100000]
[null,"Af- og nedskrivninger",27.7,0,0,"O","2010-2050",null,"                    Bevilling",null,-3100000,0,-3100000]
[null,"Internt køb af varer og tjenesteydelser",367.4,0,0,"P","17.11,17.12,17.15",null,"          Ordinære Driftsomkostninger i alt",null,2959730,0,2959730]
[null,"Andre ordinære driftsomkostninger",1057.0999999999999,0,0,"Q","1940, 2205-2280, 4110-4195, 4210-4220, 4531-4535",null,"               Forbrugsomkostninger i alt",null,107060,0,107060]
[null,"Ordinære driftsomkostninger i alt",{"$f":"C15+C18+C24+C25+C26+C27","v":3518.2999999999997},{"$f":"D15+D18+D24+D25+D26+D27","v":0},{"$f":"E15+E18+E24+E25+E26+E27","v":0},"Sum5","Sum5=h+sum3+sum4+P+Q",null,"                    Husleje",null,107060,0,107060]
[null,"Resultat af ordinær drift",{"$f":"C13+C28","v":58.299999999999727},{"$f":"D13+D28","v":0},{"$f":"E13+E28","v":0},"Sum6","Sum6=Sum2+Sum5",null,"               Personaleomkostninger i alt",null,1943217.59,0,1943217.59]
[null,"Andre driftsposter",null,null,null,null,"Overskrift",null,"                    Lønninger",null,1677861.81,0,1677861.81]
[null,"Andre driftsindtægter",-5.2,0,0,"R","2110-2140, 2190, 3003-3097, 3310",null,"                    Andre personaleomkostninger",null,24000,0,24000]
[null,"Andre driftsomkostninger",0,0,0,"S","2290, 22.94, 2295, 4310, 44.26, 44.27, 4641-4655",null,"                    Pension",null,241355.78,0,241355.78]
[null,"Resultat før finansielle poster",{"$f":"C29+C31+C32","v":53.099999999999724},{"$f":"D29+D31+D32","v":0},{"$f":"E29+E31+E32","v":0},"Sum7","Sum7=Sum6+Sum5",null,"               Årets af- og nedskrivninger",null,27704.66,0,27704.66]
[null,"Finansielle poster",null,null,null,null,"Overskrift",null,"                    Af- og nedskrivninger",null,27704.66,0,27704.66]
[null,"Finansielle indtægter",0,0,0,"T","2502-2594",null,"               Andre ordinære driftsomkostninger",null,507732.61,0,507732.61]
[null,"Finansielle omkostninger",3.9,0,0,"U","2291, 2602-2694",null,"                    Andre ordinære driftsomkostninger",null,507732.61,0,507732.61]
[null,"Resultat før ekstraordinære poster",{"$f":"C33+C35+C36","v":56.999999999999723},{"$f":"D33+D35+D36","v":0},{"$f":"E33+E35+E36","v":0},"Sum8","Sum8=sum7+T+U",null,"               Internt køb af varer og tjenesteydelser",null,374015.14,0,374015.14]
[null,"Ekstraordinære poster",null,null,null,null,"Overskrift",null,"                    Internt køb af varer og tjnesteydelser",null,374015.14,0,374015.14]
[null,"Ekstraordinære indtægter",0,0,0,"V",2805,null,"     Øvrige",null,2617.36,0,2617.36]
[null,"Ekstraordinære omkostninger",0,0,0,"X",2905,null,"          Øvrige",null,2617.36,0,2617.36]
[null,"Årets resultat",{"$f":"C37+C39+C40","v":56.999999999999723},{"$f":"D37+D39+D40","v":0},{"$f":"E37+E39+E40","v":0},"Sum9","Sum9=Sum8+V+X",null,"               Øvrige",null,2617.36,0,2617.36]
[null,null,null,null,null,null,null,null,"                    Andre driftsindtægter",null,0,0,0]
[null,null,null,null,null,null,null,null,"                    Andre driftsomkostninger",null,204.03,0,204.03]
[null,null,null,null,null,null,null,null,"                    Finansielle omkostninger",null,2413.33,0,2413.33]
[null,null,null,null,null,null,null,null,"                    Øvrige",null,0,0,0]

{"sheet":"Tabel 7. Resultatdisp","index":7,"n_rows":22,"n_cols":6,"rows_kept":22,"cut":false,"hidden":false,"merged":[[17,3,17,4],[18,3,18,4],[19,3,19,4],[20,3,20,4],[21,3,21,4]]}
["Tabel 7. Resultatdisponering"]
[{"$f":"'Start her!'!E41&\", løbende priser\"","v":"1000, løbende priser"},null,2020,"VEJLEDNING TIL INDTASTNING - tal referer til kravspecifikation 2018"]
["Note:","Disponeret til bortfald",{"$f":"'Tabel 9. Egenkapital'!D18","v":0},7311]
[null,"Disponeret til reserveret egenkapital",{"$f":"'Tabel 9. Egenkapital'!D13","v":0},7211]
[null,"Disponeret udbytte til statskassen",{"$f":"'Tabel 9. Egenkapital'!D19","v":0},7350]
[null,"Disponeret til overført overskud",{"$f":"'Tabel 9. Egenkapital'!D17","v":0},"7406, 7407, 7412, 7413"]
[]
["*","Fordeling af årets resultat",{"$f":"-'Tabel 6. Resultatopgørelse'!D41","v":0}]
[null,"Fordelt i tabel 6",{"$f":"C3+C4+C5+C6","v":0}]
[null,"Kontrol",{"$f":"C8-C9","v":0}]
[]
[]
[]
[]
[]
[null,null,null,"\nTabel 07 Resultatdisponering \n"]
[null,null,null,"Beløbstype","Virksomhed","11887252 Kgl. Akademi for de Skønne Kunster"]
[null,null,null,"Årets resultat til disponering",null,137652.64000000001]
[null,null,null,"Disponeret til bortfald",null,0]
[null,null,null,"Disponeret til udbytte til statskassen",null,0]
[null,null,null,"Disponeret til overført overskud",null,137652.64000000001]
[null,null,null,"Kontrol (skal være lig 0)",null,0]

{"sheet":"Tabel 8. Balancen","index":8,"n_rows":69,"n_cols":27,"rows_kept":69,"cut":false,"hidden":false,"merged":[[0,4,0,5],[3,0,3,1],[0,0,0,1],[2,0,2,6],[38,22,38,23],[26,22,26,23],[27,22,27,23],[28,22,28,23],[29,22,29,23],[30,22,30,23],[31,22,31,23],[20,22,20,23],[21,22,21,23],[22,22,22,23],[23,22,23,23],[24,22,24,23],[39,22,39,23],[32,22,32,23],[33,22,33,23],[34,22,34,23],[35,22,35,23],[36,22,36,23],[37,22,37,23],[25,22,25,23],[14,22,14,23],[15,22,15,23],[16,22,16,23],[17,22,17,23],[18,22,18,23],[19,22,19,23],[13,22,13,23],[8,22,8,23],[9,22,9,23],[10,22,10,23],[11,22,11,23],[12,22,12,23]]}
["Tabel 8: Balancen"]
[]
["NB: Der skal kun indtastes tal i de turkise celler. For så vidt angår regnskabstal dannes balancen ved at udfylde de obligatoriske noter og indtaste tal. I arket 'supplerende noter' kan man udarbejde tabeller til mellemregninger vedr. de balanceposter ultimo året, der ikke er omfattet af en obligatorisk note. Denne tabelskabelon kan endvidere anvendes til at opstille yderligere noter til balancen, skulle dette være nødvendigt. Der skal ikke indtastes tal i de grå celler. Alle tal indtastes fortegnsneutralt (dvs. som positive tal).",null,null,null,null,null,null,"Tabel 8. Balance"]
[{"$f":"\"Aktiver \"&'Start her!'!E41","v":"Aktiver 1000"},null,"R-1","R-året","FORMEL","VEJLEDNING TIL INDTASTNING - Tal refererer til kravspecifikationen fra 2018",null,{"$f":"A4","v":"Aktiver 1000"},null,2019,2020,"Passiver",null,{"$f":"J4","v":2019},{"$f":"K4","v":2020}]
["Note:",null,null,null,null,null,null,{"$f":"A5","v":"Note:"},null,null,null,{"$f":"A5","v":"Note:"}]
[null,"Anlægsaktiver",null,null,null,null,null,null,"Anlægsaktiver:",null,null,null,{"$f":"B39","v":"Egenkapital"}]
[1,"Immaterielle anlægsaktiver",null,null,null,"Overskrift. Til de immaterielle anlægsaktiver knyttes en obligatorisk note 1, der beskriver bevægelsen i året. Ved at udfylde noten bliver regnskabskolonnen for R-året automatisk udfyldt.",null,{"$f":"A7","v":1},"Immaterielle anlægsaktiver",null,null,null,"Reguleret egenkapital (startkapital)",{"$f":"C40","v":0},{"$f":"D40","v":0},null,null,null,null,null,null,null,"\nTabel 08 Balancen \n"]
[null,"Færdiggjorte udviklingsprojekter",0,{"$f":"'Tabel 13 og frem (noter og bil)'!C17","v":0},"A","5012-5017",null,null,{"$f":"B8","v":"Færdiggjorte udviklingsprojekter"},{"$f":"'[2]Tabel 13 og frem (noter og bil)'!I15","v":0},{"$f":"D8","v":0},null,"Opskrivninger",0,0,null,null,null,null,null,null,null,"Virksomhed / Bogføringskreds / Niveau 1 / Niveau 2 / Niveau 3 / Niveau4","Beløbstype","Primo 2020 (incl. primokorrektioner)\n","Bevægelser 202001 - 202013\n","Ultimo 2020\n"]
[null,"Erhvervede koncenssioner, patenter, licenser m.v.",0,{"$f":"'Tabel 13 og frem (noter og bil)'!D17","v":0},"B","5032-5037",null,null,{"$f":"B9","v":"Erhvervede koncenssioner, patenter, licenser m.v."},{"$f":"'[2]Tabel 13 og frem (noter og bil)'!J15","v":0},{"$f":"D9","v":0},null,"Reserveret egenkapital",0,0,null,null,null,null,null,null,null,"I alt",null,0,0,0]
[null,"Udviklingsprojekter under opførelse",0,{"$f":"'Tabel 13 og frem (noter og bil)'!C29","v":0},"C","5052-5054",null,null,{"$f":"B10","v":"Udviklingsprojekter under opførelse"},{"$f":"'[2]Tabel 13 og frem (noter og bil)'!I29","v":0},{"$f":"D10","v":0},null,"Bortfald og kontoændringer",0,0,null,null,null,null,null,null,null,"11887252 Kgl. Akademi for de Skønne Kunster",null,0,0,0]
[null,"Immaterielle anlægsaktiver i alt",{"$f":"SUM(C8:C10)","v":0},{"$f":"SUM(D8:D10)","v":0},"Sum1","Sum1 = A + B + C",null,null,"Immaterielle anlægsaktiver i alt",{"$f":"SUM(J8:J10)","v":0},{"$f":"D11","v":0},null,"Udbytte til staten",0,0,null,null,null,null,null,null,null,"     30251 Det Kgl. Akademi for de Skønne Kunster",null,0,0,0]
[2,"Materielle anlægsaktiver",null,null,null,"Overskrift. Til de materielle anlægsaktiver knyttes en obligatorisk note 2, der beskriver bevægelsen i året. Ved at udfylde noten bliver regnskabskolonnen for R-året automatisk udfyldt.",null,{"$f":"A12","v":2},"Materielle anlægsaktiver",null,null,null,"Overført overskud",0,0,null,null,null,null,null,null,null,"          Aktiver",null,1096117.46,133778.93,1229896.3899999999]
[null,"Grunde, arealer og bygninger",0,{"$f":"'Tabel 13 og frem (noter og bil)'!C44","v":0},"D","5112-5117, 5132-5138",null,null,"Grunde, arealer og bygninger",{"$f":"'[2]Tabel 13 og frem (noter og bil)'!I44","v":0},{"$f":"D13","v":0},null,"Egenkapital i alt",0,0,null,null,null,null,null,null,null,"               Anlægsaktiver",null,91556.99,-27704.66,63852.33]
[null,"Infrastruktur",0,{"$f":"'Tabel 13 og frem (noter og bil)'!D44","v":0},"E","5142-5147",null,null,"Infrastruktur",{"$f":"'[2]Tabel 13 og frem (noter og bil)'!J44","v":0},0,null,{"$f":"B49","v":"Hensatte forpligtelser"},{"$f":"C49","v":0},{"$f":"D49","v":0},null,null,null,null,null,null,null,"                    Immaterielle anlægsaktiver",null,41556.99,-27704.66,13852.33]
[null,"Transportmateriel",0,{"$f":"'Tabel 13 og frem (noter og bil)'!F44","v":0},"F","5152-5157",null,null,"Transportmateriel",{"$f":"'[2]Tabel 13 og frem (noter og bil)'!L44","v":0},0,null,null,null,null,null,null,null,null,null,null,null,"                         Færdiggjorte udviklingsprojekter",null,41556.99,-27704.66,13852.33]
[null,"Produktionsanlæg og maskiner",0,{"$f":"'Tabel 13 og frem (noter og bil)'!E44","v":0},"G","5162-5167",null,null,"Produktionsanlæg og maskiner",{"$f":"'[2]Tabel 13 og frem (noter og bil)'!K44","v":0},0,null,{"$f":"B52","v":"Langfristede gældsposter"},null,null,null,null,null,null,null,null,null,"                    Finansielle anlægsaktiver",null,50000,0,50000]
[null,"Inventar og IT-udstyr",0,{"$f":"'Tabel 13 og frem (noter og bil)'!G44","v":0},"H","5172-5177, 5182-5187",null,null,"Inventar og IT-udstyr",{"$f":"'[2]Tabel 13 og frem (noter og bil)'!M44","v":0},0,null,"FF4 Langfristet gæld",{"$f":"C53","v":0},{"$f":"D53","v":0},null,null,null,null,null,null,null,"                         Statsforskrivning",null,50000,0,50000]
[null,"Igangværende arbejder for egen regning",0,{"$f":"'Tabel 13 og frem (noter og bil)'!C58","v":0},"I","5122-5128",null,null,"Igangværende arbejder for egen regning",{"$f":"'[2]Tabel 13 og frem (noter og bil)'!I58","v":0},0,null,"Donationer",0,{"$f":"D54","v":0},null,null,null,null,null,null,null,"               Omsætningsaktiver",null,1004560.47,161483.59,1166044.06]
[null,"Materielle anlægsaktiver i alt",{"$f":"SUM(C13:C18)","v":0},{"$f":"SUM(D13:D18)","v":0},"Sum2","Sum2 = D + E + F + G + H + I",null,null,"Materielle anlægsaktiver i alt",{"$f":"SUM(J13:J18)","v":0},0,null,"Prioritets gæld ",0,{"$f":"D55","v":0},null,null,null,null,null,null,null,"                    Omsætningsaktiver (ekskl. likvider)",null,155379.48000000001,133607.09,288986.57]
[null,"Statsforskrivning",0,0,"J",5317,null,null,{"$f":"B20","v":"Statsforskrivning"},50,0,null,"Anden langfristet gæld",0,{"$f":"D56","v":0},null,null,null,null,null,null,null,"                         Tilgodehavender",null,155379.48000000001,133607.09,288986.57]
[null,"Øvrige finansielle anlægsaktiver",0,0,"K","5416-5424, 5512, 55.13, 55.14, 5518, 55.19",null,null,{"$f":"B21","v":"Øvrige finansielle anlægsaktiver"},0,0,null,"Langfristet gæld i alt",0,{"$f":"D57","v":0},null,null,null,null,null,null,null,"                    Likvide beholdning",null,849180.99,27876.5,877057.49]
[null,"Finansielle anlægsaktiver i alt",{"$f":"SUM(C20:C21)","v":0},{"$f":"SUM(D20:D21)","v":0},"Sum3","Sum3 = J + K",null,null,{"$f":"B22","v":"Finansielle anlægsaktiver i alt"},{"$f":"SUM(J20:J21)","v":50},0,null,null,null,null,null,null,null,null,null,null,null,"                         FF5 Uforrentet konto",null,630763.02,211491.81,842254.83]
[null,"Anlægsaktiver i alt",{"$f":"C11+C19+C22","v":0},{"$f":"D11+D19+D22","v":0},"Sum4","Sum4 = Sum1 + Sum2 + Sum3",null,null,"Anlægsaktiver i alt",{"$f":"J11+J19+J22","v":50},0,null,null,null,null,null,null,null,null,null,null,null,"                         FF7 Finansieringskonto",null,218417.97,-183615.31,34802.660000000003]
[null,"Omsætningsaktiver",null,null,null,"Overskrift",null,null,{"$f":"B24","v":"Omsætningsaktiver"},null,null,null,null,null,null,null,null,null,null,null,null,null,"                         Andre likvider",null,0,0,0]
[null,"Varebeholdning",0,0,"L","6011-6015, 6031-6035, 6070-6090",null,null,{"$f":"B25","v":"Varebeholdning"},0,{"$f":"D25","v":0},null,{"$f":"B60","v":"Kortfristede gældsposter"},null,null,null,null,null,null,null,null,null,"          Passiver",null,-1096117.46,-133778.93,-1229896.3899999999]
[null,"Tilgodehavender",0,0,"M","6102-6174, 6187-6188,6195-6197",null,null,{"$f":"B26","v":"Tilgodehavender"},132.6,{"$f":"D26","v":0},null,{"$f":"B61","v":"Leverandører af vare og tjenesteydelser"},{"$f":"C61","v":0},{"$f":"D61","v":0},null,null,null,null,null,null,null,"               Egenkapital",null,-341172.58,-137652.64000000001,-478825.22]
[null,"Periodeafgrænsningsposter",0,0,"N","6190, 6191",null,null,{"$f":"B27","v":"Periodeafgrænsningsposter"},0,{"$f":"D27","v":0},null,null,null,null,null,null,null,null,null,null,null,"                    Reguleret egenkapital (startkapital)",null,-50000,0,-50000]
[null,"Værdipapirer",0,0,"O","5812-5844, 5902-5904",null,null,"Værdipapirer",0,0,null,{"$f":"B62","v":"Anden kortfristet gæld"},{"$f":"C62","v":0},{"$f":"D62","v":0},null,null,null,null,null,null,null,"                         Reguleret egenkapital (startkapital)",null,-50000,0,-50000]
[null,"Likvide beholdninger",null,null,null,"Overskrift. Evt. negative poster optages på passivsiden under anden kortfristet gæld.",null,null,"Likvide beholdninger",0,0,null,{"$f":"B63","v":"Skyldige feriepenge"},0,{"$f":"D63","v":0},null,null,null,null,null,null,null,"                    Overført overskud",null,-291172.58,-137652.64000000001,-428825.22]
[null,"FF5 Uforrentet konto",0,0,"P",6211,null,null,"FF5 Uforrentet konto",630.79999999999995,0,null,null,null,null,null,null,null,null,null,null,null,"                         Overført overskud",null,-291172.58,-137652.64000000001,-428825.22]
[null,"FF7 Finansieringskonto",0,0,"Q",6231,null,null,"FF7 Finansieringskonto",218.4,0,null,{"$f":"B65","v":"Igangværende arbejder for fremmed regning, forpligtelser"},0,{"$f":"D65","v":0},null,null,null,null,null,null,null,"               Gældsforpligtelser",null,-754944.88,3873.71,-751071.17]
[null,"Andre likvider",0,0,"R","6331-6334, 6341-6348, 6361, 6365, 6367, 6371-6393",null,null,"Andre likvider",0,0,null,{"$f":"B66","v":"Periodeafgrænsningsposter, forpligtelser"},0,{"$f":"D66","v":0},null,null,null,null,null,null,null,"                    Langfristede gældsforpligtelser",null,-48483.15,27704.66,-20778.490000000002]
[null,"Likvide beholdninger i alt",{"$f":"SUM(C30:C32)","v":0},{"$f":"SUM(D30:D32)","v":0},"Sum5","Sum5 = P + Q + R",null,null,"Likvide beholdninger i alt",{"$f":"SUM(J30:J32)","v":849.19999999999993},0,null,{"$f":"B67","v":"Kortfristet gæld i alt"},0,{"$f":"D67","v":0},null,null,null,null,null,null,null,"                         FF4 Langfristet gæld",null,-48483.15,27704.66,-20778.490000000002]
[null,"Omsætningsaktiver i alt",{"$f":"SUM(C25:C28)+C33","v":0},{"$f":"SUM(D25:D28)+D33","v":0},"Sum6","Sum6 = L + M + N + O + Sum5",null,null,"Omsætningsaktiver i alt",{"$f":"SUM(J25:J28)+J33","v":981.8},{"$f":"D34","v":0},null,{"$f":"B68","v":"Gældsforpligtelser i alt"},0,{"$f":"D68","v":0},null,null,null,null,null,null,null,"                    Kortfristede gældsforpligtelser",null,-706461.73,-23830.95,-730292.68]
[null,"Aktiver i alt",{"$f":"C23+C34","v":0},{"$f":"D23+D34","v":0},"AKTIVER","AKTIVER = Sum4 + Sum6",null,null,"Aktiver i alt",{"$f":"J23+J34","v":1031.8},{"$f":"D35","v":0},null,{"$f":"B69","v":"Passiver i alt"},0,{"$f":"D69","v":0},null,null,null,null,null,null,null,"                         Leverandører af vare og tjenesteydelser",null,-319495.02,193626.62,-125868.4]
[null,null,null,null,null,null,null,null,null,null,null,null,null,null,null,null,null,null,null,null,null,null,"                         Anden kortfristet gæld",null,-131604.38,108417.46,-23186.92]
[null,null,"Primo ","Ultimo","FORMEL","VEJLEDNING TIL INDTASTNING",null,null,null,null,null,null,null,null,null,null,null,null,null,null,null,null,"                         Skyldige feriepenge",null,-255362.33,177746.35,-77615.98]
[null,{"$f":"\"Passiver \"&'Start her!'!E41","v":"Passiver 1000"},{"$f":"C5","v":0},{"$f":"D5","v":0},null,null,null,null,null,null,null,null,null,null,null,null,null,null,null,null,null,null,"                         Igangv. arbejder for fremmed regning - forpl.",null,0,-350000,-350000]
[null,"Egenkapital",null,null,null,"Til egenkapitalen knyttes en uddybende tabel (tabel 8) , der beskriver bevægelsen i året. ",null,null,null,null,null,null,null,null,null,null,null,null,null,null,null,null,"                         Periodeafgrænsningsposter, forpligtelser",null,0,0,0]
[null,"Reguleret egenkapital (startkapital)",0,0,"R",7012,null,null,null,null,null,null,null,null,null,null,null,null,null,null,null,null,"                         Skyldige indefrosne feriepenge",null,0,-153621.38,-153621.38]
[null,"Opskrivninger",0,0,"S","7102-7124"]
[null,"Reserveret egenkapital",0,0,"T",7211]
[null,"Bortfald og kontoændringer",0,0,"T1","7311, 7314,7315,7412,7413,7414 og 7415"]
[null,"Udbytte til staten",0,0,"T2",7350]
[null,"Overført overskud",0,0,"U","Standardkonti: 10-20, 25-34, 41-46 Regnskabskonti: 2100-2190,2200-2291, 2295, 2681, 7403, 7406, 7407 og 7411"]
[null,"Egenkapital i alt",{"$f":"SUM(C40:C45)","v":0},{"$f":"SUM(D40:D45)","v":0},"Sum7","Sum7 = R + S + T + T1 + T2 + U"]
[]
[]
[null,"Hensatte forpligtelser",0,0,"V","7611-7617"]
[]
[]
[null,"Langfristede gældsposter",null,null,null,"Overskrift"]
[null,"FF4 Langfristet gæld",0,0,"W","8621 og 8641"]
[null,"Donationer",0,0,"Æ","8730, 8744 og 8748  "]
[null,"Prioritets gæld ",0,0,"Y","8412, 8422, 8432, 8442, 8502"]
[null,"Anden langfristet gæld",0,0,"Z","8414, 84.20, 8424, 8434, 8444, 8504, 85.20 "]
[null,"Langfristet gæld i alt",{"$f":"SUM(C53:C56)","v":0},{"$f":"SUM(D53:D56)","v":0},"Sum8","Sum8 = W + X + Y + Z + Æ"]
[]
[]
[null,"Kortfristede gældsposter",null,null,null,"Overskrift. Evt. positive poster optages på aktivsiden under likvide beholdninger."]
[null,"Leverandører af vare og tjenesteydelser",0,0,"Ø","9511-9520"]
[null,"Anden kortfristet gæld",0,0,"Å","7795, 77.97, 9705-9772, 9778, 9781-9794, 9870-9893"]
[null,"Skyldige feriepenge",0,0,"AA","9410 0g 9411"]
[null,"Reserveret bevilling",0,0,"AC","7511, 7512, 7513, 7514 og 7515"]
[null,"Igangværende arbejder for fremmed regning, forpligtelser",0,0,"AB","9341-9345"]
[null,"Periodeafgrænsningsposter, forpligtelser",0,0,"AD",9690]
[null,"Kortfristet gæld i alt",{"$f":"SUM(C61:C66)","v":0},{"$f":"SUM(D61:D66)","v":0},"Sum9","Sum9 = Ø + Å + AA + AB + AC + AD"]
[null,"Gældsforpligtelser i alt",{"$f":"C57+C67","v":0},{"$f":"D57+D67","v":0},"Sum10","Sum10 = Sum8 + Sum9"]
[null,"Passiver i alt",{"$f":"C46+C49+C68","v":0},{"$f":"D46+D49+D68","v":0},"PASSIVER","PASSIVER = Sum7 + V + Sum10"]

{"sheet":"Tabel 9. Egenkapital","index":9,"n_rows":47,"n_cols":8,"rows_kept":47,"cut":false,"hidden":false,"merged":[[1,0,1,1],[41,5,41,6],[42,5,42,6],[43,5,43,6],[44,5,44,6],[29,5,29,6],[30,5,30,6],[31,5,31,6],[32,5,32,6],[33,5,33,6],[34,5,34,6],[45,5,45,6],[46,5,46,6],[35,5,35,6],[36,5,36,6],[37,5,37,6],[38,5,38,6],[39,5,39,6],[40,5,40,6]]}
["Tabel 9. Egenkapitalforklaring"]
[null,null,null,null,"FORMEL","VEJLEDNING TIL INDTASTNING tal referer til kravspecifikationerne 2018"]
["note:",{"$f":"'Start her!'!E41&\", løbende priser\"","v":"1000, løbende priser"},2019,2020]
[null,"Egenkapital primo R-året",0,0]
[null,"Startkapital primo",50,0,"A",7012]
[null,"+Ændring i startkapital",0,0,"B",7012]
[null,"Startkapital ultimo",{"$f":"SUM(C5:C6)","v":50},{"$f":"SUM(D5:D6)","v":0},"Startkapital ultimo",7012]
[null,"Opskrivninger primo",0,0,"C","7102-7124"]
[null,"+Ændringer i opskrivninger",0,0,"D","7102-7124"]
[null,"Opskrivninger ultimo",{"$f":"SUM(C8:C9)","v":0},{"$f":"SUM(D8:D9)","v":0},"Opskrivninger ultimo","7102-7124"]
[null,"Reserveret egenkapital primo",0,0,"E",7211]
[null,"+Ændring i reserveret egenkapital",0,0,"F",7211]
[null,"Reserveret egenkapital ultimo",{"$f":"SUM(C11:C12)","v":0},{"$f":"SUM(D11:D12)","v":0},"Reserveret egenkapital ultiomo",7211]
[null,"Overført overskud primo",348.2,0,"G","7403, 7406, 7407, 7411"]
[null,"+Primoregulering/flytning mellem bogføringskredse",0,0,"H",7412]
[null,"+Regulering af det overførte overskud",0,0,"I",7413]
[null,"+Overført fra årets resultat",-57,0,"J","Standardkonti: 10-20, 25-30, 32-34, 41-46 Regnskabskonti: 2100-2190, 2200-2291, 22.94, 2295, 3115-3155"]
[null,"- Bortfald af årets resultat",0,0,"K",7311]
[null,"- Udbytte til staten",0,0,"L",7350]
[null,"Overført overskud ultimo",{"$f":"SUM(C14:C19)","v":291.2},{"$f":"SUM(D14:D19)","v":0},"overført overskud ultimo","7403, 7406, 7407, "]
[null,"Egenkapital ultimo",{"$f":"SUM(C20,C13,C10,C7)","v":341.2},{"$f":"SUM(D20,D13,D10,D7)","v":0},null,"SUM = Startkapital ultimo + opskrivninger ultimo + reserveret egenkapital ultimo + overført overskudultimo"]
[null,"*Egenkapital ultimo jf. balancen (tabel 8) ",null,0,"*se forklaring","Standardkonti: 70, 71, 72, 73 og 74"]
["*","Til fordeling af overført overskud (fra balance)",null,{"$f":"'Tabel 8. Balancen'!D45","v":0}]
[null,"Fordelt i tabel 8",null,{"$f":"D14+D15+D16+D17+D19+D18","v":0}]
[null,"Kontrol",null,{"$f":"D23-D24","v":0}]
[]
[]
[null,null,null,null,null,"\nTabel 09 Egenkapitalforklaring \n"]
[null,null,null,null,null,"Virksomhed / Beløbstype","Finansår","2020"]
[null,null,null,null,null,"11887252 Kgl. Akademi for de Skønne Kunster",null,-2256473.46]
[null,null,null,null,null,"     Egenkapital Primo",null,-341172.58]
[null,null,null,null,null,"     Primoværdi for reguleret egenkapital",null,-50000]
[null,null,null,null,null,"     Ændringer i reguleret egenkapital",null,0]
[null,null,null,null,null,"     Ultimoværdi for reguleret egenkapital",null,-50000]
[null,null,null,null,null,"     Primoværdi for opskrivninger",null,0]
[null,null,null,null,null,"     Ændringer i opskrivninger",null,0]
[null,null,null,null,null,"     Ultimoværdi for opskrivninger",null,0]
[null,null,null,null,null,"     Primoværdi for overført overskud",null,-291172.58]
[null,null,null,null,null,"     Ændringer overført overskud ifm. kontoændringer",null,0]
[null,null,null,null,null,"     Bortfald af eksisterende overførte overskud",null,0]
[null,null,null,null,null,"     Årets resultat",null,-137652.64000000001]
[null,null,null,null,null,"     Årets bortfald",null,0]
[null,null,null,null,null,"     Udbytte til statskassen",null,0]
[null,null,null,null,null,"     Ultimoværdi for overført overskud",null,-428825.22]
[null,null,null,null,null,"     Egenkapital ultimo",null,-478825.22]
[null,null,null,null,null,"     Egenkapital jf. balancen",null,-478825.22]
[null,null,null,null,null,"     Egenkapital balancen minus egenkapital i egenkapitalforklaring",null,0]

{"sheet":"Tabel 10. Låneramme","index":10,"n_rows":16,"n_cols":5,"rows_kept":16,"cut":false,"hidden":false,"merged":[[12,0,12,1],[13,0,13,1],[14,0,14,1],[15,0,15,1]]}
[]
["Tabel 10. Udnyttelse af låneramme"]
[{"$f":"'Start her!'!E41&\", løbende priser\"","v":"1000, løbende priser"},2020]
["Sum af imm. og mat. anlægsaktiver (undt. donationer) pr. 31. december 2018",{"$f":"'Tabel 8. Balancen'!D11+'Tabel 8. Balancen'!D19-'Tabel 8. Balancen'!D54","v":0}]
["Låneramme pr. 31. december R-året",0]
["Udnyttelsesgrad i procent",{"$f":"IF(B5=0, \"-\", B4/B5)","v":"-"}]
[]
[]
[]
[]
["\nTabel 10 Udnyttelse af låneramme \n"]
["Virksomhed / Ministeransvarsområde / Virksomhedsbærende hovedkonto","Beløbstype","Låneramme\n","Trækket på lånerammen - til og med periode: 13 2020\n","Udnyttelsesgrad af låneramme i pct.\n"]
["I alt",null,300000,13852.33,4.6174433300000004]
["11887252 Kgl. Akademi for de Skønne Kunster",null,300000,13852.33,4.6174433300000004]
["     21 Kulturministeriet",null,300000,13852.33,4.6174433300000004]
["          212121 Det Kongelige Akademi for de Skønne Kunster",null,300000,13852.33,4.6174433300000004]

{"sheet":"Tabel 11. Lønsum","index":11,"n_rows":17,"n_cols":8,"rows_kept":17,"cut":false,"hidden":false,"merged":[[5,3,5,14],[1,0,1,1],[14,0,14,1],[15,0,15,1],[16,0,16,1]]}
[]
["Tabel 11. Opfølgning på lønsumsloft § 21.21.21 "]
[{"$f":"'Start her!'!E41&\", løbende priser\"","v":"1000, løbende priser"},2020]
["Lønsumsloft FL",0]
["Lønsumsloft inkl. TB/aktstykker",0]
["Lønforbrug under lønsumsloft",0]
["Difference (mindreforbrug)",{"$f":"B5-B6","v":0}]
["Akkumuleret opsparing ultimo forrige år",0]
["Akkumuleret opsparing ultimo indeværende år",{"$f":"B7+B8","v":0}]
[]
[]
[]
["\nTabel 11 Opfølgning på lønsumsloft \n"]
["Virksomhed / Hovedkonto","Beløbstype","Lønsumsloft på FL\n (mio. kr.)","Lønsumsloft inkl. TB\n (mio. kr.)","Lønforbrug under lønsumsloft\n (mio. kr.)","Difference (- =merforbrug)\n (mio. kr.)","Akk. opsparing ultimo 2019\n (mio. kr.)","Akk. opsparing ultimo 2020\n (mio. kr.)"]
["I alt",null,2000000,2000000,1919217.59,80782.41,1325000,1405782.41]
["11887252 Kgl. Akademi for de Skønne Kunster",null,2000000,2000000,1919217.59,80782.41,1325000,1405782.41]
["     212121 Det Kongelige Akademi for de Skønne Kunster",null,2000000,2000000,1919217.59,80782.41,1325000,1405782.41]

{"sheet":"Tabel 12. Bev.regnsk.","index":12,"n_rows":30,"n_cols":8,"rows_kept":30,"cut":false,"hidden":false,"merged":[[15,0,16,0],[15,1,16,1],[15,2,16,2],[7,0,7,7],[5,2,6,2],[10,0,11,0],[8,1,9,1],[8,2,9,2],[10,1,11,1],[10,2,11,2],[2,0,2,7],[12,0,12,7],[13,0,14,0],[13,1,14,1],[13,2,14,2],[8,0,9,0],[3,0,4,0],[3,1,4,1],[3,2,4,2],[5,0,6,0],[5,1,6,1],[29,0,29,1],[24,0,24,1],[25,0,25,1],[26,0,26,1],[27,0,27,1],[28,0,28,1]]}
["Tabel 12. Bevillingsregnskab"]
["Hovedkonto","Navn","Bevillingstype","Mio kr.","Bevilling","Regnskab","Afvigelse","Videreførelse Ultimo"]
["Drift"]
["xx.xx.xx",null,null,"Udgifter"]
[null,null,null,"Indtægter"]
["yy.yy.yy",null,null,"Udgifter"]
[null,null,null,"Indtægter"]
["Administrerede ordninger"]
["vv.vv.vv",null,null,"Udgifter"]
[null,null,null,"Indtægter"]
["zz.zz.zz",null,null,"Udgifter"]
[null,null,null,"Indtægter"]
["Anlæg "]
["aa.aa.aa",null,null,"Udgifter"]
[null,null,null,"Indtægter"]
["bb.bb.bb",null,null,"Udgifter"]
[null,null,null,"Indtægter"]
[]
[]
["Kontrolberegning",null,null,null,null,null,null,{"$f":"#REF!-#REF!","v":{"$error":"#REF!"}}]
[]
[]
["\nTabel 12 Bevillingsregnskab \n"]
["Virksomhed / Drift, Administrerede ordninger og anlæg / Bevillingstype / Hovedkonto / Udgift/indtægt/balance","Beløbstype","Bevillinger i alt\n (mio. kr.)","Regnskab år til dato (periode: 13)\n (mio. kr.)","Afvigelse (bevilling minus regnskab)\n (mio. kr.)","overført overskud ultimo året\n (mio. kr.)","Videreførelser ultimo året\n (mio. kr.)"]
["11887252 Kgl. Akademi for de Skønne Kunster",null,3100000,2962347.36,137652.64000000001,-428825.22,0]
["     Drift",null,3100000,2962347.36,137652.64000000001,-428825.22,0]
["          12 Driftsbevilling, omkostningsbaseret",null,3100000,2962347.36,137652.64000000001,-428825.22,0]
["               212121 Det Kongelige Akademi for de Skønne Kunster",null,3100000,2962347.36,137652.64000000001,-428825.22,0]
["                    Udgiftskonto",null,3100000,2962347.36,137652.64000000001,0,0]
["                    Balancekonto",null,0,0,0,-428825.22,0]

{"sheet":"Tabel 12A. Udgiftsbaserede hk","index":13,"n_rows":5,"n_cols":6,"rows_kept":5,"cut":false,"hidden":false,"merged":[[2,0,3,0]]}
["Tabel 12A. Udgiftsbaserede hovedkonti (§ XX.XX.XX.)"]
["Hovedkonto ","Navn","Bevillingstype","(Mio. kr.)","Bevilling","Regnskab"]
["XX.XX.XX",null,null,"Udgifter "]
[null,null,null,"Indtægter "]
["YY.YY.YY",null,null,"Udgifter "]

{"sheet":"Tabel 13 og frem (noter og bil)","index":14,"n_rows":163,"n_cols":21,"rows_kept":163,"cut":false,"hidden":false,"merged":[[137,14,137,15],[138,14,138,15],[150,16,151,16],[150,17,151,17],[150,18,151,18],[32,14,33,14],[5,15,6,15],[16,18,16,19],[5,17,6,17],[88,15,88,19],[32,19,33,19],[12,18,12,19],[22,15,23,15],[150,15,151,15],[51,15,52,15],[32,15,33,15],[133,14,133,15],[134,14,134,15],[135,14,135,15],[136,14,136,15],[5,3,6,3],[5,4,6,4],[8,18,8,19],[32,5,33,5],[30,6,30,7],[31,6,31,7],[32,6,32,7],[33,6,33,7],[24,6,24,7],[25,6,25,7],[26,6,26,7],[27,6,27,7],[18,8,18,9],[32,20,33,20],[32,11,33,11],[32,12,33,12],[5,18,6,19],[7,18,7,19],[15,18,15,19],[5,16,6,16],[10,18,10,19],[11,18,11,19],[32,16,33,16],[32,17,33,17],[32,18,33,18],[13,18,13,19],[14,18,14,19],[1,0,1,9],[51,4,52,4],[5,2,6,2],[5,6,6,6],[22,4,23,4],[32,0,33,0],[32,2,33,2],[32,3,33,3],[32,4,33,4],[22,2,23,2],[51,2,52,2],[5,0,6,0],[5,9,6,9],[28,6,28,7],[29,6,29,7],[18,6,19,6],[96,2,96,6],[88,2,88,6],[150,5,151,5],[158,2,159,2],[158,3,159,3],[158,4,159,4],[158,5,159,5],[150,2,151,2],[150,3,151,3],[150,4,151,4],[20,6,20,7],[21,6,21,7],[22,6,22,7],[23,6,23,7],[52,10,52,11],[45,10,45,11],[40,10,40,11],[41,10,41,11],[42,10,42,11],[43,10,43,11],[44,10,44,11],[32,10,33,10],[53,10,53,11],[46,10,46,11],[47,10,47,11],[48,10,48,11],[49,10,49,11],[50,10,50,11],[51,10,51,11]]}
["Tabel 13-23",null,null,null,null,null,null,null,null,null,null,null,null,null,null,null,null,"Udskriftsegnede noter"]
[]
[]
[]
["Tabel 13 - Note 1: Immaterielle anlægsaktiver",null,null,null,null,null,null,null,null,null,null,null,null,null,"Tabel 13 - Note 1: Immaterielle anlægsaktiver"]
[{"$f":"'Start her!'!E41&\", løbende priser\"","v":"1000, løbende priser"},null,"Færdiggjorte udviklings-projekter","Erhvervede koncessioner, patenter, licenser mv.","I alt",null,null,null,null,null,null,null,null,null,{"$f":"A6","v":"1000, løbende priser"},"Færdiggjorte udviklings-projekter","Erhvervede koncessioner, patenter, licenser mv.","I alt"]
[]
["Primobeholdning",null,0,0,{"$f":"SUM(C8:D8)","v":0},null,null,null,null,null,null,null,null,null,{"$f":"A8","v":"Primobeholdning"},{"$f":"C8","v":0},{"$f":"D8","v":0},{"$f":"E8","v":0}]
["Opskrivning",null,0,0,{"$f":"SUM(C9:D9)","v":0},null,null,null,null,null,null,null,null,null,"Opskrivning",0,0,0]
["Kostpris pr. 1.1.20xx (før afskr.)",null,{"$f":"SUM(C8:C9)","v":0},{"$f":"SUM(D8:D9)","v":0},{"$f":"SUM(E8:E9)","v":0},null,null,null,null,null,null,null,null,null,"Kostpris pr. 1.1.20xx (før afskr.)",0,0,0]
["Tilgang",null,0,0,{"$f":"C11+D11","v":0},null,null,null,null,null,null,null,null,null,"Tilgang",0,0,0]
["Afgang",null,0,0,0,null,null,null,null,null,null,null,null,null,"Afgang",0,0,0]
["Kostpris pr. 31.12.20xx (før afskr.)",null,{"$f":"C10+C11-C12","v":0},{"$f":"D10+D11-D12","v":0},0,null,null,null,null,null,null,null,null,null,"Kostpris pr. 31.12.20xx (før afskr.)",0,0,0]
["Akk. afskrivninger",null,0,0,0,null,null,null,null,null,null,null,null,null,"Akk. afskrivninger",0,0,0]
["Akk. nedskrivninger",null,0,0,0,null,null,null,null,null,null,null,null,null,"Akk. nedskrivninger",0,0,0]
["Akk. af- og nedskrivninger 31.12.20xx",null,{"$f":"C14+C15","v":0},{"$f":"D14+D15","v":0},0,null,null,null,null,null,null,null,null,null,"Akk. af- og nedskrivninger 31.12.20xx",0,0,0]
["Regnskabsmæssig værdi pr. 31.12.20xx",null,{"$f":"C13-C16","v":0},{"$f":"D13-D16","v":0},{"$f":"E13-E16","v":0},null,null,null,null,null,null,null,null,null,"Regnskabsmæssig værdi pr. 31.12.20xx",0,0,0]
["Årets afskrivninger",null,0,0,{"$f":"C18+D18","v":0},null,"\nTabel 13 Note 1. Immaterielle anlægsaktiver \n",null,null,null,null,null,null,null,"Årets afskrivninger",0,0,0]
["Årets nedskrivninger",null,0,0,{"$f":"C19+D19","v":0},null,"Virksomhed / Beløbstype","Statuspost","11.00 Immaterielle anlægsaktiver",null,null,null,null,null,"Årets nedskrivninger",0,0,0]
["Årets af- og nedskrivninger",null,{"$f":"C18+C19","v":0},{"$f":"D18+D19","v":0},{"$f":"C20+D20","v":0},null,null,"Anlægsgruppe (fx inventar)","Færdiggjorte udviklingsprojekter","I alt",null,null,null,null,"Årets af- og nedskrivninger",0,0,0]
["Afskrivningsperiode/år",null,"antal år","antal år",null,null,"11887252 Kgl. Akademi for de Skønne Kunster",null,-13852.33,-13852.33,null,null,null,null,"Afskrivningsperiode/år","antal år",{"$f":"D21","v":"antal år"}]
[null,null,null,null,null,null,"     Kostpris primo",null,83114,83114]
[null,null,"Udviklings-projekter under opførelse",null,null,null,"     Primokorrektion år til dato (til periode: 13)",null,0,0,null,null,null,null,null,"Udviklings-projekter under opførelse"]
[null,null,null,null,null,null,"     Årets tilgang (periode 01-13 2020)",null,0,0]
["Primosaldo pr. 1.1 20xx",null,{"$f":"'Tabel 8. Balancen'!C10","v":0},null,null,null,"     Årets afgang (periode 01-13 2020)",null,0,0,null,null,null,null,{"$f":"A25","v":"Primosaldo pr. 1.1 20xx"},{"$f":"C25","v":0}]
["Tilgang",null,0,null,null,null,"     Ændringer i opskrivninger",null,0,0,null,null,null,null,{"$f":"A26","v":"Tilgang"},{"$f":"C26","v":0}]
["Nedskrivninger",null,0,null,null,null,"     Kostpris 31. 12 202x (inkl. opskrivninger)",null,83114,83114,null,null,null,null,{"$f":"A27","v":"Nedskrivninger"},{"$f":"C27","v":0}]
["Afgang",null,0,null,null,null,"     Akkumulerede afskrivninger",null,-69261.67,-69261.67,null,null,null,null,{"$f":"A28","v":"Afgang"},{"$f":"C28","v":0}]
["Kostpris pr. 31.12.20xx",null,{"$f":"C25+C26-C27-C28","v":0},null,null,null,"     Akkumulerede nedskrivninger",null,0,0,null,null,null,null,{"$f":"A29","v":"Kostpris pr. 31.12.20xx"},{"$f":"C29","v":0}]
[null,null,null,null,null,null,"     Akkumulerede af- og nedskrivninger i alt",null,-69261.67,-69261.67]
[null,null,null,null,null,null,"     Regnskabsmæssig værdi 31.12 202x",null,13852.33,13852.33]
["Tabel 14 - Note 2: Materielle anlægsaktiver",null,null,null,null,null,"     Årets afskrivninger",null,-27704.66,-27704.66,null,null,null,null,"Tabel 14 - Note 2: Materielle anlægsaktiver"]
[{"$f":"'Start her!'!E41","v":1000},null,"Grunde, arealer og bygninger","Infrastruktur","Produktionsanlæg og maskiner","Transportmateriel","     Årets nedskrivninger",null,0,0,null,null,null,null,{"$f":"A33","v":1000},"Grunde, arealer og bygninger","Infrastruktur","Produktionsanlæg og maskiner","Transportmateriel","Inventar og IT-udstyr","I alt"]
[null,null,null,null,null,null,"     Årets af- og nedskrivninger",null,-27704.66,-27704.66]
["Primobeholdning",null,0,0,0,0,0,{"$f":"SUM(C35:G35)","v":0},null,null,null,null,null,null,{"$f":"A35","v":"Primobeholdning"},{"$f":"C35","v":0},{"$f":"D35","v":0},{"$f":"E35","v":0},{"$f":"F35","v":0},{"$f":"G35","v":0},{"$f":"H35","v":0}]
["Opskrivning",null,0,0,0,0,0,{"$f":"SUM(C36:G36)","v":0},null,null,null,null,null,null,"Opskrivning",0,0,0,0,0,0]
["Kostpris pr. 1.1.20xx (før afskr.)",null,{"$f":"C35+C36","v":0},{"$f":"D35+D36","v":0},{"$f":"E35+E36","v":0},{"$f":"F35+F36","v":0},{"$f":"G35+G36","v":0},{"$f":"SUM(C37:G37)","v":0},null,null,null,null,null,null,"Kostpris pr. 1.1.20xx (før afskr.)",0,0,0,0,0,0]
["Tilgang",null,0,0,0,0,0,0,null,null,null,null,null,null,"Tilgang",0,0,0,0,0,0]
["Afgang",null,0,0,0,0,0,0,null,null,"\nTabel 14 Note 2. Materielle anlægsaktiver \n",null,null,null,"Afgang",0,0,0,0,0,0]
["Kostpris pr. 31.12.20xx (før afskr.)",null,{"$f":"C37+C38-C39","v":0},{"$f":"D37+D38-D39","v":0},{"$f":"E37+E38-E39","v":0},{"$f":"F37+F38-F39","v":0},{"$f":"G37+G38-G39","v":0},0,null,null,"Virksomhed / Beløbstype","Anlægsgruppe (fx inventar)","Bygninger","I alt","Kostpris pr. 31.12.20xx (før afskr.)",0,0,0,0,0,0]
["Akk. afskrivninger",null,0,0,0,0,0,0,null,null,"11887252 Kgl. Akademi for de Skønne Kunster",null,0,0,"Akk. afskrivninger",0,0,0,0,0,0]
["Akk. nedskrivninger",null,0,0,0,0,0,0,null,null,"     Kostpris primo",null,0,0,"Akk. nedskrivninger",0,0,0,0,0,0]
["Akk. af- og nedskrivninger 31.12.20xx",null,{"$f":"C41+C42","v":0},{"$f":"D41+D42","v":0},{"$f":"E41+E42","v":0},{"$f":"F41+F42","v":0},{"$f":"G41+G42","v":0},0,null,null,"     Primokorrektioner",null,0,0,"Akk. af- og nedskrivninger 31.12.20xx",0,0,0,0,0,0]
["Regnskabsmæssig værdi pr. 31.12.20xx",null,{"$f":"C40-C43","v":0},{"$f":"D40-D43","v":0},{"$f":"E40-E43","v":0},{"$f":"F40-F43","v":0},{"$f":"G40-G43","v":0},0,null,null,"     Ændringer i opskrivninger",null,0,0,"Regnskabsmæssig værdi pr. 31.12.20xx",0,0,0,0,0,0]
["Årets afskrivninger",null,0,0,0,0,0,0,null,null,"     Årets tilgang (periode 01-13 2020)",null,0,0,"Årets afskrivninger",0,0,0,0,0,0]
["Årets nedskrivninger",null,0,0,0,0,0,0,null,null,"     Årets afgang (periode 01-13 2020)",null,0,0,"Årets nedskrivninger",0,0,0,0,0,0]
["Årets af- og nedskrivninger",null,{"$f":"C45+C46","v":0},{"$f":"D45+D46","v":0},{"$f":"E45+E46","v":0},{"$f":"F45+F46","v":0},{"$f":"G45+G46","v":0},0,null,null,"     Kostpris ultimo 31/12 202x",null,0,0,"Årets af- og nedskrivninger",0,0,0,0,0,{"$f":"H46","v":0}]
["Afskrivningsperiode/år",null,"antal år","antal år","antal år","antal år","antal år",null,null,null,"     Akkumulerede afskrivninger",null,0,0,"Afskrivningsperiode/år","antal år","antal år","antal år","antal år","antal år"]
[null,null,null,null,null,null,null,null,null,null,"     Akkumulerede nedskrivninger",null,0,0]
[null,null,null,null,null,null,null,null,null,null,"     Akkumulerede af- og nedskrivninger 31/12 202x",null,0,0]
[null,null,null,null,null,null,null,null,null,null,"     Regnskabsmæssig værdi pr. 31/12 202x",null,0,0]
[null,null,"I gang-værende arbejder for egen regning",null,null,null,null,null,null,null,"     Årets afskrivninger",null,0,0,null,"I gang-værende arbejder for egen regning"]
[null,null,null,null,null,null,null,null,null,null,"     Årets nedskrivninger",null,0,0]
["Primosaldo pr. 01.01.20xx",null,{"$f":"'Tabel 8. Balancen'!C18","v":0},null,null,null,null,null,null,null,"     Årets af- og nedskrivninger",null,0,0,{"$f":"A54","v":"Primosaldo pr. 01.01.20xx"},{"$f":"C54","v":0}]
["Tilgang",null,0,null,null,null,null,null,null,null,null,null,null,null,"Tilgang",{"$f":"C55","v":0}]
["Nedskrivninger",null,0,null,null,null,null,null,null,null,null,null,null,null,"Nedskrivninger",{"$f":"C56","v":0}]
["Afgang",null,0,null,null,null,null,null,null,null,null,null,null,null,"Overført til færdige materielle anlægsaktiver",{"$f":"C57","v":0}]
["Kostpris pr. 31.12.20xx",null,{"$f":"C54+C55-C56-C57","v":0},null,null,null,null,null,null,null,null,null,null,null,{"$f":"A58","v":"Kostpris pr. 31.12.20xx"},{"$f":"C58","v":0}]
[]
[]
[]
["Tabel 14A Note 3. Hensatte forpligtelser"]
[{"$f":"'Start her!'!E$41","v":1000}]
["Hensat i 2020 til",null,null,null,null,null,null,null,null,"Beløb"]
["Formål 1",null,null,null,null,null,null,null,null,0]
["Formål 2",null,null,null,null,null,null,null,null,0]
["Formål 3",null,null,null,null,null,null,null,null,0]
["Hensættelser i alt",null,null,null,null,null,null,null,null,{"$f":"J65+J66+J67","v":0}]
[]
["Tabel 15. Sammenfatning af elementer i prisfastsættelse"]
[null,null,"Ultimo","Ultimo","Ultimo","Ultimo"]
[{"$f":"\"Løbende priser, \"&'Start her!'!E$41","v":"Løbende priser, 1000"},null,"R-3","R-2","R-1","R-året"]
["Institutionens direkte omkostninger i alt",null,0,0,0,0]
["Institutionens indirekte omkostninger i alt",null,0,0,0,0]
["Øvrige indregnede omkostninger",null,0,0,0,0]
["Sum",null,0,0,0,0]
["Indtægter i alt",null,0,0,0,0]
[]
[]
["Tabel 16. Oversigt over akkumuleret resultat af indtægtsdækket virksomhed"]
[null,null,"Ultimo","Ultimo","Ultimo","Ultimo"]
[{"$f":"\"Løbende priser, \"&'Start her!'!E$41","v":"Løbende priser, 1000"},null,"R-3","R-2","R-1","R-året"]
["Efteruddannelseskurser",null,0,0,0,0]
["Konsulentydelser",null,0,0,0,0]
[null,null,0,0,0,0]
[]
[]
["Tabel 17. Oversigt over gebyrordninger med adm. fastsat takst "]
[null,null,"Årets resultat"]
[{"$f":"\"Løbende priser, \"&'Start her!'!E$41","v":"Løbende priser, 1000"},null,"R-3","R-2","R-1","R-året","I alt"]
["Gebyrprovenu",null,0,0,0,0,{"$f":"SUM(C91:F91)","v":0}]
["Omkostninger",null,0,0,0,0,0]
["Resultat",null,0,0,0,0,{"$f":"SUM(C93:F93)","v":0}]
[]
[]
["Tabel 18. Oversigt over gebyrordninger med lovbestemt takst"]
[null,null,"Årets resultat"]
[{"$f":"\"Løbende priser, \"&'Start her!'!E$41","v":"Løbende priser, 1000"},null,"R-3","R-2","R-1","R-året","I alt"]
["Gebyrprovenu",null,0,0,0,0,{"$f":"SUM(C99:F99)","v":0}]
[null,null,0,0,0,0,{"$f":"SUM(C100:F100)","v":0}]
[]
[]
["Tabel 19a. Tilskudsfinansieret forskningsvirksomhed (uk. 95)"]
[{"$f":"\"Løbende priser, \"&'Start her!'!E$41","v":"Løbende priser, 1000"},null,"Overført overskud fra tidligere år","Årets tilskud","Årets udgifter","Årets resultat","Overskud til videreførsel"]
["navn, ordning",null,0,0,0,0,0]
["navn, ordning",null,0,0,0,0,0]
["I alt",null,{"$f":"SUM(C105:C106)","v":0},{"$f":"SUM(D105:D106)","v":0},{"$f":"SUM(E105:E106)","v":0},{"$f":"SUM(F105:F106)","v":0},{"$f":"SUM(G105:G106)","v":0}]
[]
["Tabel 19. Andre tilskudsfinansierede aktiviteter (uk. 97)"]
[{"$f":"\"Løbende priser, \"&'Start her!'!E$41","v":"Løbende priser, 1000"},null,"Overført overskud fra tidligere år","Årets tilskud","Årets udgifter","Årets resultat","Overskud til videreførsel"]
["Navn, ordning",null,0,0,0,0,0]
["Navn, ordning",null,0,0,0,0,0]
["I alt",null,{"$f":"SUM(C111:C112)","v":0},{"$f":"SUM(D111:D112)","v":0},{"$f":"SUM(E111:E112)","v":0},{"$f":"SUM(F111:F112)","v":0},{"$f":"SUM(G111:G112)","v":0}]
[]
[]
["Tabel 20. Oversigt over afsluttede anlægsprojekter"]
[{"$f":"'Start her!'!E$41","v":1000}]
["Afsluttede anlægsprojekt","Senest forelagt","Byggestart","Forventet afslutning ved byggestart","Faktisk afslutningstidspunkt","Godkendt budgetteret totaludgift","Faktisk totaludgift"]
["Projekt 1, FL-underkonto",null,"dato","dato","dato",0,0]
["Projekt 2, FL-underkonto",null,"dato","dato","dato",0,0]
["Projekt 3, FL-underkonto",null,"dato","dato","dato",0,0]
[]
[]
["Tabel 21. Oversigt over igangværende anlægsprojekter"]
[{"$f":"'Start her!'!E$41","v":1000}]
["Igangværende anlægsprojekt","Senest forelagt","Byggestart","Afholdte udgifter i alt","Afholdte udgifter, indeværende år","Godkendt totaludgift"]
["Projekt 1, FL-underkonto",null,"dato","dato",0,0]
["Projekt 2, FL-underkonto",null,"dato","dato",0,0]
["Projekt 3, FL-underkonto",null,"dato","dato",0,0]
[]
[]
["Tabel 22. It-omkostninger, mio. kr. "]
["Sammensætning",{"$f":"\"\"&'Start her!'!E$41","v":"1000"},null,null,null,null,null,null,null,null,null,null,null,null,"Virksomhed / It omkostninger / Regnskabskonto / Indkøbskategori","Beløbstype","Regnskab år-til-dato\n"]
["Interne personaleomkostninger til it (it-drift/-vedligehold/-udvikling) ",0,null,null,null,null,null,null,null,null,null,null,null,null,"I alt",null,9255]
["It-systemdrift",0,null,null,null,null,null,null,null,null,null,null,null,null,"11887252 Kgl. Akademi for de Skønne Kunster",null,9255]
["It-vedligehold",0,null,null,null,null,null,null,null,null,null,null,null,null,"     Udgifter til it varer til forbrug",null,9255]
["It-udviklingsomkostninger",0,null,null,null,null,null,null,null,null,null,null,null,null,"          2260 Køb af IT-varer til forbrug",null,9255]
["Udgifter til it-varer til forbrug",0,null,null,null,null,null,null,null,null,null,null,null,null,"               1620 Computere og tilbehør",null,9255]
["i alt",{"$f":"SUM(B134:B138)","v":0},null,null,null,null,null,null,null,null,null,null,null,null,"               3010 Institutionsspecifikke varer",null,0]
[]
[]
["Tabel 23. Tilskudsregnskab"]
[{"$f":"'Start her!'!E$41","v":1000},null,null,null,null,null,null,null,"20xx"]
["Tilskud",null,"Overført overskud fra tidligere år","Årets tilskud","Disponibel ramme i alt ","Regnskab","Årets resultat","Overskud til videreførsel, ultimo","Overskud videreførsel, primo","Bevilling","Disponibel ramme"]
[null,null,0,0,{"$f":"C145+D145","v":0},0,{"$f":"D145-F145","v":0},0,{"$f":"H145","v":0},0,0]
[null,null,0,0,{"$f":"C146+D146","v":0},0,{"$f":"D146-F146","v":0},0,{"$f":"H146","v":0},0,0]
[null,null,0,0,{"$f":"C147+D147","v":0},0,{"$f":"D147-F147","v":0},0,{"$f":"H147","v":0},0,0]
[]
[]
["Tabel 24. Udestående tilsagn"]
["Hovedkonto",null,"Primo-beholdning","Tilgang i året","Afgang i året","Ultimo-beholdning"]
[{"$f":"'Start her!'!E$41","v":1000}]
["Hovedkonto 1",null,0,0,0,0]
["Hovedkonto 2",null,0,0,0,0]
["Hovedkonto 3",null,0,0,0,0]
[]
[]
["Tabel 25. Afrapportering på nøgletal for forvaltningsopgaver"]
["Nøgletal",null,"R20xx","R20xx","R20xx","R20xx"]
[{"$f":"'Start her!'!E$41","v":1000}]
["Nøgletal x",null,0,0,0,0]
["Nøgletal x",null,0,0,0,0]
["Nøgletal x",null,0,0,0,0]

{"sheet":"Skabelon til suppl. noter","index":15,"n_rows":21,"n_cols":13,"rows_kept":21,"cut":false,"hidden":false,"merged":[[16,12,17,12],[16,8,17,8],[16,9,17,9],[16,10,17,10],[16,11,17,11],[16,1,17,1],[16,2,17,2],[16,3,17,3],[16,4,17,4],[16,5,17,5]]}
["Supplerende noter",null,null,null,null,null,null,"Udskriftegnet version"]
[]
["Supplerende noter til resultatopgørelsen",null,null,null," "]
[null,null,"Forklaring:"]
["[Overskrift]",null,null,null,null,null,null,{"$f":"A5","v":"[Overskrift]"}]
[{"$f":"'Start her!'!E41","v":1000},null,null,null,null,null,null,{"$f":"A6","v":1000}]
[null,null,null,null,null,null,null,0,{"$f":"B7","v":0}]
[null,null,null,null,null,null,null,0,0]
[null,null,null,null,null,null,null,0,0]
[null,null,null,null,null,null,null,0,0]
[null,null,null,null,null,null,null,0,0]
["I alt",null,null,null,null,null,null,{"$f":"A12","v":"I alt"},0]
[]
[]
[]
["Note x: Personaleomkostninger",null,null,null,null,null,null,{"$f":"A16","v":"Note x: Personaleomkostninger"}]
["årsværk/antal","Regnskab 2016","Regnskab 2017","Regnskab 2018","Regnskab 2019","Budget 2020",null,{"$f":"A17","v":"årsværk/antal"},{"$f":"B17","v":"Regnskab 2016"},{"$f":"C17","v":"Regnskab 2017"},{"$f":"D17","v":"Regnskab 2018"},{"$f":"E17","v":"Regnskab 2019"},{"$f":"F17","v":"Budget 2020"}]
[]
["Antal årsværk",0,0,0,0,0,null,"Antal årsværk",{"$f":"B19","v":0},0,{"$f":"D19","v":0},0,0]
["Tilgang af medarbejdere (antal)",0,0,0,0,0,null,"Tilgang af medarbejdere",0,0,0,0,0]
["Afgang af medarbejdere (antal)",0,0,0,0,0,null,"Afgang af medarbejdere",0,0,0,0,0]